Cogmind - Beta 17 @@@ ROGUE MODE // 2026.07.04 @ 02:19:19 Player: alice_fexa Result: Destroyed by 0U-O0M(j) with Overtuned Pulse Rifle Performance ------------- Evolutions (0) 0 Regions Visited (3) 600 Robots Destroyed (23) 115 Value Destroyed (519) 519 Prototype IDs (13) 260 Alien Tech Used (0) 0 Bonus (5146) 5146 TOTAL SCORE: 6640 Bonus ------- Follower Combat Kills 365 Prayed to X0-1V1 5000 Registered with UFD 300 Friendly Fire -519 Cogmind --------- Core Integrity 0/150 Matter 224/300 Energy 429/450 System Corruption 0% Temperature Warm (164) Movement Treading (240) Ox1 Location -9/Scraptown Parts ------- > --- POWER (1) -------- Ion Engine > --- PROPULSION (2) --- Light Treads Light Treads > --- UTILITY (2) ------ Large Storage Unit Wyrmscale > --- WEAPON (2) ------- Subdweller Laser Assault Rifle > --- INVENTORY (15) --- Ion Engine Wheel Subdweller Monowheel Heat Sink Seismic Detector X0-1V1's Piety Tracker Medium Laser Small Laser Small Laser Particle Gun Assault Rifle Light Assault Rifle Datajack Mining Laser CPS Tube (1) Peak State ------------ > --- POWER ------------ Ion Engine > --- PROPULSION ------- Light Treads Light Treads > --- UTILITY ---------- Large Storage Unit Wyrmscale > --- WEAPON ----------- Subdweller Laser Assault Rifle > --- INVENTORY -------- Ion Engine Wheel Subdweller Monowheel Heat Sink Seismic Detector X0-1V1's Piety Tracker Medium Laser Small Laser Small Laser Particle Gun Assault Rifle Light Assault Rifle Datajack Mining Laser CPS Tube [Rating: 23] Favorites ----------- Power Ion Engine Engine Ion Engine Propulsion Light Treads Treads Light Treads Utility Large Storage Unit Device Heat Sink Storage Large Storage Unit Protection Hardened Medium Armor Plating Weapon Particle Gun Energy Gun Particle Gun Ballistic Gun Assault Rifle Special Weapon Mining Laser Build | -11 -10 -10 -9 ------- Run | Yrd Mat Sub Scr Slots Evolved . | . . . . Power . | . . . . Propulsion . | . . . . Utility . | . . . . Weapon . | . . . . Parts Attached 20 | 6 6 4 4 Power 2 | 1 1 . . Engine 2 | 1 1 . . Core . | . . . . Reactor . | . . . . Propulsion 4 | 2 1 1 . Treads 4 | 2 1 1 . Leg . | . . . . Wheel . | . . . . Hover . | . . . . Flight . | . . . . Utility 7 | 1 2 1 3 Device 3 | . 1 1 1 Storage 2 | 1 1 . . Processor . | . . . . Hackware . | . . . . Protection 2 | . . . 2 Artifact . | . . . . Weapon 7 | 2 2 2 1 Energy Gun 4 | 1 2 1 . Energy Cannon . | . . . . Ballistic Gun 1 | 1 . . . Ballistic Cannon . | . . . . Launcher . | . . . . Special Weapon 2 | . . 1 1 Impact Weapon . | . . . . Slashing Weapon . | . . . . Piercing Weapon . | . . . . Special Melee Weapon . | . . . . Unidentified Prototypes 1 | . . . 1 Parts Lost 2 | . . 2 . Power 1 | . . 1 . Propulsion 1 | . . 1 . Utility . | . . . . Weapon . | . . . . Highest Loss Streak 1 | . . 1 . To Critical Strikes . | . . . . Average Backups 13 | 3 12 14 14 Power 1 | . 2 1 1 Propulsion 2 | 1 2 2 2 Utility 2 | . 1 3 3 Weapon 5 | . 5 6 7 Tool/Special . | . . . . Unused Backups 13 | . 4 1 8 Power 3 | . 2 . 1 Propulsion 4 | . 1 1 2 Utility 1 | . . . 1 Weapon 4 | . 1 . 3 Tool/Special 1 | . . . 1 Average Slot Usage (%) 98 | . 97 99 100 Engine 13 | . 14 13 14 Treads 27 | . 28 27 28 Device 11 | . 11 14 10 Storage 14 | . 14 14 14 Protection 1 | . . . 3 Energy Gun 25 | . 25 24 26 Ballistic Gun 1 | . 2 . . Special Weapon 1 | . . 3 . Peak Build Rating 23 | 6 10 11 23 Average Rating 10 | 5 8 10 12 On Entrance 6 | . 6 10 10 Avg Prop Armor Cover (%) . | . . . . Naked Turns . | . . . . Heaviest Build 40 | 14 30 33 40 Greatest Support 40 | 40 40 40 40 Greatest Overweight (x) . | . . . . Average Overweight (x) . | . . . . Largest Inventory Capacity 15 | 8 15 15 15 Average Capacity 14 | 7 14 15 15 Most Carried 15 | 5 15 15 15 Average Carried 13 | 3 12 14 14 Final Capacity 15 | 8 15 15 15 Final Carried 15 | 5 15 15 15 Class Distribution -------------------- 71% | Scavenger-Mutant 28% | Mutant Dominant Class ---------------- Mutant | -10/Materials Scavenger-Mutant | -10/Subcaves Scavenger-Mutant | -9/Scraptown Resources | -11 -10 -10 -9 ----------- Run | Yrd Mat Sub Scr Matter Collected 510 | 276 119 95 20 Remotely . | . . . . Salvage Created 753 | 26 544 134 49 Parts 49 | 5 35 8 1 Haulers Intercepted 2 | . 2 . . Recyclers Shooed . | . . . . Parts Field Recycled . | . . . . Retrieved Matter . | . . . . Parts Self-Destructed 8 | . . 8 . Prevented . | . . . . Parts Restored . | . . . . Kills | -11 -10 -10 -9 ------- Run | Yrd Mat Sub Scr Combat Hostiles Destroyed 14 | . 9 3 2 Guns 13 | . 8 3 2 Classes Destroyed 11 | 1 7 1 2 Worker 1 | . 1 . . Builder 2 | . 2 . . Tunneler 2 | 2 . . . Hauler 2 | . 2 . . Recycler 1 | . 1 . . Watcher 1 | . 1 . . Swarmer 3 | . 3 . . Grunt 6 | . 6 . . Subdweller 3 | . . 3 . Explorer 1 | . . . 1 Savage 1 | . . . 1 Best Kill Streak 3 | 1 3 1 1 Combat Bots Only 3 | . 3 1 1 Max Kills in Single Turn 1 | 1 1 1 1 Gunslinging . | . . . . Exploded . | . . . . Melee . | . . . . Uniques/NPCs Destroyed 1 | . . . 1 Triborg (-9/Scraptown) Combat | -11 -10 -10 -9 -------- Run | Yrd Mat Sub Scr Hostile Shots Fired 73 | . 40 21 12 Missed 25 | . 13 6 6 Hits 48 | . 27 15 6 Melee 2 | . . . 2 Projectile 46 | . 27 15 4 Critical Strikes 2 | . . 1 1 Damage Taken 1078 | . 330 309 439 Core 203 | . 47 78 78 Absorbed by Shields . | . . . . Regen/Repaired (Parts) 372 | . . . 372 Core Remaining (%) 100 | 100 . . . Volleys Fired 105 | 10 55 27 13 Largest 2 | 2 2 2 2 Hottest 125 | 70 105 125 80 Shots Fired 197 | 20 109 43 25 Gun 186 | 20 109 33 24 Cannon . | . . . . Launcher . | . . . . Special 11 | . . 10 1 Kinetic 37 | 10 15 . 12 Thermal 159 | 10 94 43 12 Explosive . | . . . . Electromagnetic . | . . . . Robot Hit Streak 16 | 5 16 8 10 Robot Miss Streak 5 | 3 5 2 2 Penetration Max . | . . . . Secondary Targets 1 | . . . 1 Max Gunslinging Chain 1 | . . . 1 Shots Hit Robots 116 | 11 65 25 15 Core Hits 38 | 3 26 5 4 Critical Kills . | . . . . Critical Parts Destroyed 1 | . 1 . . Critical Strikes 5 | 1 4 . . Burn 4 | 1 3 . . Destroy 1 | . 1 . . Melee Attacks . | . . . . Impact . | . . . . Slashing . | . . . . Piercing . | . . . . Sneak Attacks . | . . . . Combat Hostiles . | . . . . Follow-up Attacks . | . . . . Damage Inflicted 1541 | 150 808 293 290 Guns 1541 | 150 808 293 290 Cannons . | . . . . Explosions . | . . . . Melee . | . . . . Ramming . | . . . . Kinetic 235 | 75 56 . 104 Thermal 1306 | 75 752 293 186 Explosive . | . . . . Electromagnetic . | . . . . Impact . | . . . . Slashing . | . . . . Piercing . | . . . . Highest Corruption . | . . . . Average Corruption . | . . . . Corruption Purged . | . . . . Corruption Blocked . | . . . . Overload Shots . | . . . . Overflow Damage . | . . . . Projectiles . | . . . . Explosions . | . . . . Melee . | . . . . Knockbacks . | . . . . Impact . | . . . . Kinetic . | . . . . Secondary . | . . . . Self-Inflicted Damage . | . . . . Shots . | . . . . Rammed . | . . . . Targets Rammed . | . . . . Kicked . | . . . . Crushed . | . . . . Highest Temperature 233 | 90 153 . 233 Average Temperature 51 | 46 32 . 100 Received Heat Transfer 255 | . 177 66 12 Siege Activations . | . . . . Martial Activations . | . . . . Shielding Activations . | . . . . Robots Disrupted . | . . . . Combat Hostiles . | . . . . Robots Corrupted . | . . . . Combat Hostiles . | . . . . Parts Fried . | . . . . Impact Corruptions . | . . . . Robots Melted 2 | . 2 . . Combat Hostiles 1 | . 1 . . Parts Melted 2 | . 1 1 . Heat Transferred 3139 | 296 2130 583 130 Parts Sabotaged . | . . . . Parts Stolen . | . . . . Parts Stripped . | . . . . Power Chain Reactions . | . . . . Alert | -11 -10 -10 -9 ------- Run | Yrd Mat Sub Scr Maximum Alert Level . | . . . . Low Security (%) 100 | 100 100 . . Level 1 . | . . . . Level 2 . | . . . . Level 3 . | . . . . Level 4 . | . . . . Level 5 . | . . . . High Security . | . . . . Max Security . | . . . . Peak Influence 75 | 5 75 . . Initial . | . . . . Average 13 | 1 14 . . Influence Increases 291 | 10 281 . . Destroy 0b10 Robot/C 180 | . 180 . . Destroy 0b10 Robot/NC 45 | 10 35 . . Destroy Leader 46 | . 46 . . Successful Hack 3 | . 3 . . Destroy Structure 2 | . 2 . . Lose Combat Pursuer 15 | . 15 . . Influence Decreases 291 | 10 281 . . Time Decay 291 | 10 281 . . Squads Dispatched 1 | . 1 . . Investigation . | . . . . Extermination . | . . . . Reinforcement 1 | . 1 . . Assault . | . . . . Garrison . | . . . . Intercept . | . . . . Searches Triggered . | . . . . Construction Impeded . | . . . . Haulers Reinforced . | . . . . Active Scanning Responses . | . . . . Cargo Convoy Interrupts . | . . . . Stealth | -11 -10 -10 -9 --------- Run | Yrd Mat Sub Scr Distress Signals 2 | . 2 . . Communications Jammed . | . . . . Distress Signals . | . . . . Times Spotted 43 | . 20 3 20 Peak Tracking Total 9 | . 3 1 9 Tactical Retreats 1 | . 1 . . Traps | -11 -10 -10 -9 ------- Run | Yrd Mat Sub Scr Traps Triggered . | . . . . Indirectly . | . . . . Trap Hack Attempts . | . . . . Triggered . | . . . . Disarmed . | . . . . Reprogrammed . | . . . . Reused . | . . . . Traps Extracted . | . . . . Installed . | . . . . Triggered . | . . . . Machines | -11 -10 -10 -9 ---------- Run | Yrd Mat Sub Scr Machines Disabled 3 | . . . 3 Max in Single Turn . | . . . . Machines Repaired . | . . . . Machines Dismantled . | . . . . Machines Sabotaged . | . . . . Overloaded Fab Kills . | . . . . Hacking | -11 -10 -10 -9 --------- Run | Yrd Mat Sub Scr Machines Accessed 7 | . 6 . 1 Terminals 6 | . 6 . . Fabricators . | . . . . Repair Stations . | . . . . Recycling Units . | . . . . Scanalyzers . | . . . . Garrison Access . | . . . . Total Hacks 19 | . 18 . 1 Successful 13 | . 12 . 1 Failed 6 | . 6 . . Catastrophic . | . . . . Database Lockouts . | . . . . Manual 19 | . 19 . . Terminals 18 | . 18 . . Fabricators . | . . . . Repair Stations . | . . . . Recycling Units . | . . . . Scanalyzers . | . . . . Garrison Access . | . . . . Terminal Hacks 3 | . 2 . 1 Locate Traps 2 | . 2 . . Proto ID Catalog 1 | . . . 1 Fabricator Hacks . | . . . . Repair Station Hacks . | . . . . Recycling Unit Hacks . | . . . . Scanalyzer . | . . . . Garrison Access Hacks . | . . . . Unauthorized Hacks 10 | . 10 . . Terminals 10 | . 10 . . Botnet 4 | . 4 . . Skim 6 | . 6 . . Fabricators . | . . . . Repair Stations . | . . . . Recycling Units . | . . . . Scanalyzers . | . . . . Garrison Access . | . . . . Data Cores Recovered . | . . . . Used . | . . . . Hacking Detections 3 | . 3 . . Full Trace Events 1 | . 1 . . Feedback Events . | . . . . Feedback Blocked . | . . . . Robot Schematics Acquired . | . . . . Robots Built . | . . . . Authchips . | . . . . Time . | . . . . Total Robot Build Rating . | . . . . Part Schematics Acquired . | . . . . Parts Built . | . . . . Authchips . | . . . . Time . | . . . . Total Part Build Rating . | . . . . Part Studies Acquired . | . . . . Parts Repaired . | . . . . Time . | . . . . Parts Recycled . | . . . . Recycled Matter . | . . . . Retrieved Matter . | . . . . Retrieved Components . | . . . . Parts Scanalyzed . | . . . . Part Schematics Acquired . | . . . . Parts Damaged . | . . . . Bothacking | -11 -10 -10 -9 ------------ Run | Yrd Mat Sub Scr Used RIF Installer . | . . . . Robots Hacked . | . . . . Non-combat . | . . . . Combat . | . . . . Robot Hacks Applied . | . . . . Relay Couplers Released . | . . . . Fabnet Peak Effective % . | . . . . Robots Rewired . | . . . . Allies Hacked . | . . . . Hacks Repelled . | . . . . Allies | -11 -10 -10 -9 -------- Run | Yrd Mat Sub Scr Total Allies 1 | . . . 1 Largest Group 1 | . . . 1 Highest-Rated Group 446 | . . . 446 Highest-Rated Ally 446 | . . . 446 Total Orders . | . . . . Ally Attacks 48 | . . . 48 Total Damage 3421 | . . . 3421 Kills 15 | . . . 15 Allies Corrupted . | . . . . Allies Melted . | . . . . X0-1V1 Amusement Gains 14 | . 14 . . Good Acts 2 | . . 2 . Bad Acts 1 | . . 1 . Intel | -11 -10 -10 -9 ------- Run | Yrd Mat Sub Scr Active Infowar (turns) 504 | . . 504 . Seismic 504 | . . 504 . Robot Analysis Total . | . . . . Derelict Logs Recovered 1 | . . 1 . Drone Launches . | . . . . Drone Recoveries . | . . . . Exploration | -11 -10 -10 -9 ------------- Run | Yrd Mat Sub Scr Turns Passed 3593 | 124 1496 752 1221 Spaces Moved 1724 | 55 603 364 702 Core 7 | 7 . . . Treads 1717 | 48 603 364 702 Legs . | . . . . Wheels . | . . . . Hover . | . . . . Flight . | . . . . Fastest Speed 50 | 50 160 160 160 Average Speed 159 | 146 160 160 160 Slowest Speed 160 | 160 160 160 160 Overloaded Moves . | . . . . Propulsion Burnouts . | . . . . Robots Hopped . | . . . . Potential Cave-ins 1 | . . 1 . Cave-ins Triggered . | . . . . Exploration Rate (%) 47 | 3 85 28 73 Regions Visited 3 Branch Regions 2 Pre-discovered Areas . | . . . . Known Exits Taken 1 | . 1 . . Unknown Exits Taken 2 | 1 . 1 . Scrap Searched 2 | . . . 2 Spaces Dug 4 | . . 4 . Terrain Destroyed 7 | . . 6 1 Melee . | . . . . Projectile 7 | . . 6 1 AOE . | . . . . Terrain Rammed . | . . . . Walls Destroyed . | . . . . Machines Disabled . | . . . . Actions | -11 -10 -10 -9 --------- Run | Yrd Mat Sub Scr Total 2346 | 76 1027 469 774 Wait 457 | 1 345 62 49 Move 1721 | 54 602 363 702 Hop . | . . . . Pick Up 21 | 5 12 3 1 Fast Attach 11 | 6 2 1 2 Attach 2 | . . 1 1 Detach 2 | . 1 1 . Swap 15 | . 4 8 3 Drop 12 | . 6 3 3 Fire 105 | 10 55 27 13 Melee . | . . . . Ram . | . . . . Kick . | . . . . Crush . | . . . . Escape Stasis . | . . . . Rewire . | . . . . Trap . | . . . . Miscellaneous . | . . . . Route ------- -11/Scrapyard -10/Materials (discovered 4 exits: [*Mat] / [*Min x2] / *Sub) -10/Subcaves -9/Scraptown History --------- Turn | Location | Event 14 | -11/Scrapyard | Discovered new exit (range 15) 125 | -11/Scrapyard | Entered Materials 148 | -10/Materials | Discovered new exit (range 10) 313 | -10/Materials | Build established: Mutant 909 | -10/Materials | Discovered new exit (range 13) 1177 | -10/Materials | Identified exit to Subcaves 1203 | -10/Materials | Build established: Scavenger-Mutant 1209 | -10/Materials | Learned Storage terminal intel 1210 | -10/Materials | Discovered new exit (range 11) 1232 | -10/Materials | Learned Storage trap positions 1247 | -10/Materials | Learned Storage emergency access door positions 1274 | -10/Materials | Learned Storage stockpile data 1605 | -10/Materials | Prayed at D.C.S.S. Altar Unit 1621 | -10/Materials | Entered Subcaves 1622 | -10/Subcaves | Approached by a straggling Scientist 1681 | -10/Subcaves | Energy capacity permanently improved by X0-1V1 (+200; -100 max core) 1864 | -10/Subcaves | Learned Materials garrison access intel 1954 | -10/Subcaves | A swath of the cavern ceiling suddenly collapsed 2326 | -10/Subcaves | Scientist uncovered a shortcut to Scraptown 2357 | -10/Subcaves | Core integrity fell below 50% 2373 | -10/Subcaves | Entered Scraptown 2410 | -9/Scraptown | Heard Great Nut preacher, LISTEN AND RECITE! 2434 | -9/Scraptown | Visited CR-KLE's Repair Center 2467 | -9/Scraptown | Visited Symbiants 2483 | -9/Scraptown | Visited Fellowship of the Rings 2506 | -9/Scraptown | Visited The Evicted 2557 | -9/Scraptown | Visited Shadow of the Wyrm 2590 | -9/Scraptown | Visited CPS Storage 2614 | -9/Scraptown | Visited UFD Registry 2614 | -9/Scraptown | Registered with UFD as "Pyroframe" 2663 | -9/Scraptown | Visited Cartography Club 2689 | -9/Scraptown | Visited Infowarlord's Domain 2715 | -9/Scraptown | Visited Scrapoid Pod Storage 2740 | -9/Scraptown | Visited Observation Area 2755 | -9/Scraptown | Visited Science Guys 2884 | -9/Scraptown | Visited Analyses Database 3420 | -9/Scraptown | CR-KLE repaired 7 parts 3532 | -9/Scraptown | X0-1V1 brought Wyrm Statue to life 3532 | -9/Scraptown | Attacked by Scraptown defenders 3537 | -9/Scraptown | Attached CPS modules to Chaos Wyrm 3543 | -9/Scraptown | Core integrity fell below 20% 3568 | -9/Scraptown | Allies destroyed Triborg 3593 | -9/Scraptown | Found Prototype Protection 3593 | -9/Scraptown | Identified Wyrmscale 3594 | -9/Scraptown | Destroyed by 0U-O0M(j) with Overtuned Pulse Rifle Last Messages --------------- 03585_ D2-GXB(r) destroyed. 03585_ JP-O5S(x) destroyed. 03585_ Switching to secondary target: NK-733(x). 03587_ Bolt penetrates Chaos Wyrm. 03589_ Y0-D5K(r) destroyed. 03590_ The unstable cave ceiling collapses. 03590_ NK-733(x) destroyed. 03590_ Bolt penetrates Chaos Wyrm. 03591_ V8-LAI(h): "Murder hobos aren't welcome in Scraptown!" 03591_ The unstable cave ceiling collapses. 03592_ TU-071(h) destroyed. 03592_ CPS modules swiftly deploy to protect Chaos Wyrm components. 03592_ Chaos Wyrm destroyed. 03593_ The unstable cave ceiling collapses. 03593_ Penetrated by Bolt. 03593_ Dropped Hrd. Medium Armor Plating. 03593_ Acquired Prototype Protection. 03593_ Identified Wyrmscale. 03593_ Bolt penetrates Earth. 03594_ X0-1V1 guffaws! Map ----- +----------------------------------------------------+ | ?# #???????????????# #???#"""" | | # #??????########## #???#"""" | | # #?????#" " " " # #???#"""" | | #?????#"|" "|" #???#"""" | | " # #?????#" "|" "| # #???#"""" | | "" # #??????"|"|"|" # ###?#"""" | | ##?# #?????? # ""#"#"""" | | ???# #?????########### """"#"""" | | ???# #???????????????# ""#?#####" | | ???# #???????????????# ###?????#" | | ???# #???????????????# #########" | | ???# #???????????????# h | | ??# #???????????????# | | ?# #???????????????# | | " ?# #???????????????# | | # ################# | | # %! | | [ j | | #### !! &% | | ???# *==] ! j | | #### %!]=! h | | =% %/&%=! #""""#" | | =[% !%!!] #????#" | | E[%[ /]!! #????#"""""" | | ###### ##############%!#*! ### ####????####### | | #???# #??##]!=@! ## #???????????? | | #???# #?## =] = ## #???????????# | | #???# #?# # % ## #???????????#"" | | #???#""""" """"#?# ## #???????????#" | | #???#""""" """""#?## = * ## #???????????#" | | #???#""""" """""#?# # % = ## #???????????#"" | | #???#""""" """""#?# ### #???????????### | | #????"""""""""""#?### #?# #?????????????? | | #????"""""""""""??## ##?# #?????????????? | | #????"""""""""""??# ## ###??# #?????????????? | | #?????#########???#########???# #?????????????? | | #????????????????????????###### #?????????????? | | #??????????????????????"""""""" #?????????????? | | #?????????????????????""" """"" #?????????????? | | #?????????????##?????""" " "" #?????????????? | | #???????????? ?? #?????????????? | | ##????##?????? #?????" "" "" " #?????????????? | | ##????"""????"" "????????""""""" #?????????????? | | #????"" ""??""" "#????????"""""" #?????????????? | | ##???"" "?#""" "#?????????##### #?????????????? | | "#??#" ""##"" "#?############# #?????????????? | | "#??#"" ""##"" "#?#"""""""""""# #?????????????? | | "#??#"" ""##" "#?#"" ! = !! "# #?????????????? | | "#??#"" ""##"| "#?#""!*/ !!! "# #?????????????? | | #???#" ""##"" "#?#"" "# #?????????????? | +----------------------------------------------------+ Best States ------------- Heat Dissipation 47 Energy Generation 10 Energy Capacity 450 Matter Stores 300 Matter Capacity 300 Sight Range 16 Terrain Scan Density 10 Armor Coverage 225 Evasion (%) 40 Recoil Reduction 2 Item Schematics ----------------- None Robot Schematics ------------------ None Fabricated ------------ Nothing Repaired ---------- Nothing Studied --------- None Alien Tech Used ----------------- None Achievements -------------- None Challenges ------------ None Game ------ Seed OpticalSkeletonExoskeleton Manual? 0 Play Time 00:14:06 Cumulative 1678.9 hours Start 2026.07.04 @ 02:07:02 End 2026.07.04 @ 02:19:19 Sessions 1 Manual Loads 0 Difficulty Rogue Special Mode None Game No. 1195 Rogue 1155 Adventurer 40 Explorer 0 Win Type - Total 220 Types 104/11/74/2/2/4/16/2/1/4 Lore% 97 Gallery% 96 Achievement% 88 Wizard Run 0 Options --------- Layout 0 ASCII 0 Keyboard 0 Movement Numpad Keybinds 0 Fullscreen 0 Font 20/Terminus Map View 76x50 Zoom Use 0% Tactical HUD 1 Map Filters NONE Filters NONE Steam 1 RUN: cb6dc574-ec2a-41f2-9626-af152242b9da